[Event "XVIII La Palma-ch 2019"]
[Site "La Palma"]
[Date "2019.03.30"]
[Round "3.2"]
[White "Ros Octavio De Toledo, Eduardo"]
[Black "Haertl, Siegfried"]
[Result "1/2-1/2"]
[ECO "D60"]
[WhiteElo "2061"]
[BlackElo "1945"]
[Annotator "NA RC"]
[PlyCount "101"]
[EventDate "2019.03.29"]
[EventType "swiss"]
[EventCountry "ESP"]
[SourceTitle "playchess.com"]
[Source "ChessBase"]
[SourceQuality "1"]
[TimeControl "5400+30"]

{[%evp 12,101,22,32767,32767,32767,32767,32767,32767,36,33,32767,34,32767,32767,-13,32767,32767,32767,0,32767,32767,32767,32767,32767,32767,32767,32767,-40,-54,32767,32767,-47,-81,32767,32767,32767,32767,118,32767,238,-68,-61,-83,-43,32767,32767,32767,32767,32767,32767,-15,32767,-12,62,32767,32767,60,64,-112,-114,-135,-12,-29,-30,-89,0,0,0,-45,-15,-54,-43,-50,-36,-36,32767,92,88,93,32767,32767,32767,32767,32767,32767,32767,32767,32767,32767,14,-395]} 1. Nf3 {[%emt 0:00:48]} Nf6 {[%emt 0:00:00]} 2. c4 {[%emt 0:00:32]} e6 {[%emt 0:00:00]} 3. Nc3 {[%emt 0:01:06]} d5 {[%emt 0:00:20]} 4. d4 {[%emt 0:00:14]} Be7 {[%emt 0:01:33]} 5. Bg5 {[%emt 0:04:18]} O-O {[%emt 0:00:31]} 6. e3 {[%emt 0:00:13]} Nbd7 {[%emt 0:03:41] LiveBook: 3307 Games} 7. Rc1 {[%emt 0:01:09]} h6 {[%emt 0:00:38]} 8. Bh4 {[%emt 0:03:13]} c6 {[%emt 0:02:18]} 9. Bd3 {[%emt 0:02:28]} b6 {[%emt 0:02:09]} 10. cxd5 {[%emt 0:02:14]} cxd5 {[%emt 0:03:37]} 11. O-O {[%emt 0:03:04]} Bb7 {[%emt 0:00:54]} 12. Qe2 {[%emt 0:03:08]} Ne4 {[%emt 0:02:56] D60: Queen's Gambit Declined: Classical: Unusual White 7th moves} 13. Bg3 {[%emt 0:02:51]} (13. Bxe7 Qxe7 14. Nb5 Rfc8 15. a3 Ndf6 16. Rxc8+ Bxc8 17. Rc1 Ne8 18. Ne5 Bb7 19. f3 N4d6 20. Nc3 {1-0 (74) Donchenko,A (2573)-Jugelt,T (2431) Apolda 2017}) 13... Nxg3 {[%emt 0:02:46]} 14. hxg3 {[%emt 0:00:17]} Nf6 {[%emt 0:04:02]} 15. Ba6 {[%emt 0:03:08]} Bxa6 $146 {[%emt 0:04:00]} ({Predecessor:} 15... Qb8 16. Rc2 Bd6 17. Rfc1 Ng4 18. Bxb7 Qxb7 19. Nb5 Qd7 20. Nxd6 Qxd6 {1-0 (52) Dlabik,J (2133)-Murin,J (2018) Slovakia 2006}) 16. Qxa6 {[%emt 0:00:10]} Qc8 {[%emt 0:00:04]} 17. Qa4 {[%emt 0:06:19]} Qb7 {[%emt 0:01:59]} 18. Ne5 {[%emt 0:01:01]} Rac8 {[%emt 0:02:57]} 19. a3 {[%emt 0:14:10]} Bd6 {[%emt 0:02:49]} 20. Nd3 {[%emt 0:02:31]} Rc4 {[%emt 0:01:34]} 21. Qb3 {[%emt 0:00:49]} Rfc8 {[%emt 0:00:44]} 22. Rfd1 {[%emt 0:08:34]} Qe7 {[%emt 0:03:16]} 23. Rc2 {[%emt 0:04:37]} Ng4 {[%emt 0:02:21]} 24. Ne1 {[%emt 0:03:04]} Bxg3 $2 {[%emt 0:05:33]} (24... Qg5 $15 25. Nf3 Qg6) 25. fxg3 {[%emt 0:02:43]} Nxe3 {[%emt 0:00:30] [#]} (25... Qc7 $16 {was necessary.}) 26. Rcd2 $2 {[%emt 0:02:03]} (26. Nxd5 $1 $18 {[%mdl 512]} exd5 (26... Nxd5 27. Rxc4) 27. Re2) 26... Nxd1 {[%emt 0:00:25]} 27. Qxd1 {[%emt 0:00:13]} Qg5 {[%emt 0:02:54]} (27... Rxc3 $5 28. bxc3 Qxa3 $17) 28. Rd3 {[%emt 0:00:27]} a6 {[%emt 0:00:35]} 29. Qd2 {[%emt 0:00:49]} Qg6 {[%emt 0:02:57]} 30. Nf3 {[%emt 0:00:24]} f6 {[%emt 0:00:17]} 31. Qe2 {[%emt 0:01:07]} Qf7 {[%emt 0:02:45]} 32. Re3 {[%emt 0:00:42] [#]} R8c6 {[%emt 0:02:14]} (32... e5 $1 $11 {[%mdl 512]} 33. Qd2 (33. dxe5 d4 $17) 33... e4) 33. Qd3 {[%emt 0:04:01]} b5 {[%emt 0:00:41]} 34. Nd2 {[%emt 0:01:44] Trapped Piece} b4 $1 {[%emt 0:00:53]} 35. axb4 $2 {[%emt 0:03:36]} (35. Na2 $16 {stays on course.}) 35... Rxb4 {[%emt 0:00:13]} 36. b3 {[%emt 0:00:50] [#]} Qa7 {[%emt 0:00:37]} (36... e5 $1 $17 {[%cal Re5d4][%mdl 512]} 37. Ne2 (37. dxe5 d4) 37... e4) 37. Ne2 {[%emt 0:00:32]} a5 {[%emt 0:02:16]} 38. Kh2 {[%emt 0:00:24]} (38. Nf3 $11) 38... a4 {[%emt 0:01:11]} 39. bxa4 {[%emt 0:00:15]} Rxa4 {[%emt 0:01:27]} 40. Nf3 {[%emt 0:00:31]} Qf7 {[%emt 0:01:21]} 41. g4 {[%emt 0:01:06]} Qc7+ {[%emt 0:01:00]} 42. Kh3 {[%emt 0:00:27]} Ra1 {[%emt 0:00:23]} 43. Ng3 {[%emt 0:00:41]} Rcc1 {[%emt 0:03:02]} 44. Rxe6 {[%emt 0:01:29]} Rh1+ {[%emt 0:00:23]} 45. Nh2 {[%emt 0:00:23]} Rhe1 {[%emt 0:04:53]} 46. Qf5 {[%emt 0:01:31]} Ra3 {[%emt 0:01:56]} 47. Nf3 {[%emt 0:00:14]} Rxe6 {[%emt 0:00:20]} 48. Qxe6+ {[%emt 0:00:03]} Qf7 {[%emt 0:00:37]} 49. Qxf7+ {[%emt 0:01:43]} Kxf7 {[%emt 0:00:20]} 50. Nf5 {[%emt 0:00:47]} Ra4 $11 {[%emt 0:08:01]} 51. Nxh6+ $2 {[%emt 0:00:06]} (51. Kg3 $11 {and White stays safe.}) 1/2-1/2

[Event "XVIII La Palma-ch 2019"]
[Site "La Palma"]
[Date "2019.03.30"]
[Round "3.3"]
[White "Rodriguez Miranda, Sergio"]
[Black "Garcia De La Banda, Francisco"]
[Result "1-0"]
[ECO "D12"]
[WhiteElo "1957"]
[BlackElo "1882"]
[Annotator "NA RC"]
[PlyCount "95"]
[EventDate "2019.03.29"]
[EventType "swiss"]
[EventCountry "ESP"]
[SourceTitle "playchess.com"]
[Source "ChessBase"]
[SourceQuality "1"]
[TimeControl "5400+30"]

1. d4 {[%emt 0:01:40]} d5 {[%emt 0:00:00]} 2. c4 {[%emt 0:00:43]} c6 {[%emt 0:00:17]} 3. Nf3 {[%emt 0:03:02]} Nf6 {[%emt 0:00:14]} 4. e3 {[%emt 0:02:35]} Bf5 {[%emt 0:00:15]} 5. Nc3 {[%emt 0:00:14]} Nbd7 {[%emt 0:00:14]} 6. cxd5 {[%emt 0:00:57] D12: Slav Defence: 3 Nf3 Nf6 4 e3 Bf5} Nxd5 {[%emt 0:00:32]} 7. Bd3 {[%emt 0:00:49]} (7. Nh4 Bg6 8. g3 e6 9. Bg2 Qa5 10. Nxg6 hxg6 11. Bd2 Qa6 12. Qe2 Qxe2+ 13. Kxe2 N7b6 {1-0 (41) Gavrikov,V (2559)-Hochstrasser,M (2353) Switzerland 2006}) 7... Bxd3 {[%emt 0:01:18]} 8. Qxd3 {[%emt 0:00:21]} e6 $146 {[%emt 0:00:18]} ({Predecessor:} 8... Nxc3 9. bxc3 e6 10. O-O Bd6 11. e4 O-O 12. e5 Be7 13. Be3 f6 {0-1 (25) Pedersen,S (2260)-Gundogmus,A La Pineda 2004}) 9. a3 {[%emt 0:00:09]} Bd6 {[%emt 0:00:27]} 10. O-O {[%emt 0:00:56]} Qc7 {[%emt 0:02:34]} 11. Nxd5 {[%emt 0:01:28]} exd5 {[%emt 0:00:38]} 12. b4 {[%emt 0:00:15]} a6 {[%emt 0:00:14]} 13. Bd2 {[%emt 0:00:14]} Nf6 {[%emt 0:00:28]} 14. Rfc1 {[%emt 0:20:51]} O-O {[%emt 0:01:40]} 15. a4 {[%emt 0:02:11]} Qb6 {[%emt 0:01:15]} 16. Rab1 {[%emt 0:01:57]} Ne4 {[%emt 0:00:33]} 17. Be1 {[%emt 0:00:13]} Rfe8 {[%emt 0:00:54]} 18. b5 {[%emt 0:00:16]} cxb5 {[%emt 0:01:11]} 19. axb5 {[%emt 0:01:04]} h6 {[%emt 0:02:54]} 20. bxa6 {[%emt 0:05:50]} Qxa6 {[%emt 0:00:04]} 21. Qb3 {[%emt 0:04:57]} Qa2 {[%emt 0:03:47]} 22. Qxa2 {[%emt 0:02:22]} Rxa2 {[%emt 0:00:02]} 23. Rxb7 {[%emt 0:00:02]} Rea8 {[%emt 0:00:14]} 24. Kf1 {[%emt 0:01:08]} Ra1 {[%emt 0:19:03]} 25. Rbb1 {[%emt 0:15:28]} R1a2 {[%emt 0:00:48]} 26. h3 {[%emt 0:04:17]} Ba3 {[%emt 0:06:06]} 27. Rc6 {[%emt 0:03:40]} Bd6 {[%emt 0:00:09]} 28. Rb5 {[%emt 0:05:21]} Ra1 {[%emt 0:00:39]} 29. Rc2 {[%emt 0:00:23]} Rd1 {[%emt 0:01:17]} 30. Ke2 {[%emt 0:04:36]} Raa1 {[%emt 0:00:02]} 31. Rxd5 {[%emt 0:03:14]} Rdb1 {[%emt 0:05:00]} 32. Kd3 {[%emt 0:05:53]} f5 {[%emt 0:02:43]} 33. Rxf5 {[%emt 0:01:36]} Nf6 {[%emt 0:00:03]} 34. Bc3 {[%emt 0:01:58]} Ra3 {[%emt 0:00:36]} 35. Ra5 {[%emt 0:01:00]} Rab3 {[%emt 0:03:11]} (35... Rxa5 $142 36. Bxa5 Rb3+ 37. Rc3 Rb5 38. Rc8+ Kf7) 36. Nd2 {[%emt 0:03:09]} Rd1 $18 {[%emt 0:03:05]} 37. Ke2 {[%emt 0:02:36]} Rxd2+ {[%emt 0:01:55]} 38. Bxd2 {[%emt 0:00:13]} Kh7 {[%emt 0:00:06]} 39. f3 {[%emt 0:00:11]} Rb1 {[%emt 0:00:35]} 40. Ra6 {[%emt 0:00:25]} Bg3 {[%emt 0:00:23]} 41. Rxf6 {[%emt 0:01:15]} gxf6 {[%emt 0:00:05]} 42. f4 {[%emt 0:00:06]} Kg6 {[%emt 0:00:38]} 43. Kf3 {[%emt 0:00:24]} Bh2 {[%emt 0:00:17]} 44. g4 {[%emt 0:00:26]} Rg1 {[%emt 0:00:31]} 45. d5 {[%emt 0:00:47]} Rg3+ {[%emt 0:01:39]} 46. Kf2 {[%emt 0:00:00]} h5 {[%emt 0:00:25]} 47. f5+ {[%emt 0:00:31]} Kg5 {[%emt 0:00:55]} 48. d6 {[%emt 0:00:48]} 1-0

[Event "XVIII La Palma-ch 2019"]
[Site "La Palma"]
[Date "2019.03.30"]
[Round "3.4"]
[White "Martin Rodriguez, Jose Carlos"]
[Black "Alonso Perez, Alfredo"]
[Result "0-1"]
[ECO "E76"]
[WhiteElo "1761"]
[BlackElo "1730"]
[Annotator "NA"]
[PlyCount "58"]
[EventDate "2019.03.29"]
[EventType "swiss"]
[EventCountry "ESP"]
[SourceTitle "playchess.com"]
[Source "ChessBase"]
[SourceQuality "1"]
[TimeControl "5400+30"]

1. d4 {[%emt 0:01:31]} Nf6 {[%emt 0:00:16]} 2. c4 {[%emt 0:00:11]} g6 {[%emt 0:00:07]} 3. Nc3 {[%emt 0:00:03]} Bg7 {[%emt 0:00:08]} 4. e4 {[%emt 0:00:03]} d6 {[%emt 0:00:03]} 5. f4 {[%emt 0:00:03]} O-O {[%emt 0:03:53]} 6. Nf3 {[%emt 0:00:32]} Nbd7 {[%emt 0:03:39]} 7. Be2 {[%emt 0:00:09]} c5 {[%emt 0:09:42]} 8. e5 {[%emt 0:01:07]} Ne8 {[%emt 0:02:49]} 9. Be3 {[%emt 0:01:08]} Qa5 {[%emt 0:03:40]} 10. O-O {[%emt 0:06:09]} cxd4 {[%emt 0:00:45]} 11. Nxd4 {[%emt 0:02:16]} dxe5 {[%emt 0:01:04]} 12. Nb3 {[%emt 0:00:18]} Qd8 {[%emt 0:06:22]} 13. f5 {[%emt 0:01:07]} Nd6 {[%emt 0:03:37]} 14. fxg6 {[%emt 0:00:59]} hxg6 {[%emt 0:00:31]} 15. c5 {[%emt 0:01:11]} Ne8 {[%emt 0:09:45]} 16. Bf3 {[%emt 0:00:51]} Nef6 {[%emt 0:04:11]} 17. c6 {[%emt 0:00:36]} bxc6 {[%emt 0:00:01]} 18. Bxc6 {[%emt 0:00:31]} Ba6 {[%emt 0:00:31]} 19. Rf2 {[%emt 0:07:51]} Rc8 {[%emt 0:01:39]} 20. Bf3 {[%emt 0:05:35]} Rc7 {[%emt 0:05:45]} 21. Rd2 {[%emt 0:00:29]} Qc8 {[%emt 0:01:14]} 22. Qe1 {[%emt 0:01:00]} Nb6 {[%emt 0:08:22]} 23. Rad1 {[%emt 0:00:25]} Nc4 {[%emt 0:00:33]} 24. Nd5 {[%emt 0:03:06]} Nxd2 {[%emt 0:02:07]} 25. Nxf6+ {[%emt 0:00:29]} Bxf6 {[%emt 0:00:39]} 26. Qxd2 {[%emt 0:00:30]} Rc2 {[%emt 0:04:50]} 27. Qa5 {[%emt 0:00:18]} Be2 {[%emt 0:01:08]} 28. Bxe2 {[%emt 0:05:13]} Rxe2 {[%emt 0:00:10]} 29. Qxa7 {[%emt 0:06:14]} Qg4 {[%emt 0:05:38]} 0-1

[Event "XVIII La Palma-ch 2019"]
[Site "La Palma"]
[Date "2019.03.31"]
[Round "4.1"]
[White "Haertl, Siegfried"]
[Black "Guerra Arrocha, Daniel"]
[Result "0-1"]
[ECO "E94"]
[WhiteElo "1945"]
[BlackElo "2038"]
[Annotator "NA RC"]
[PlyCount "78"]
[EventDate "2019.03.29"]
[EventType "swiss"]
[EventCountry "ESP"]
[SourceTitle "playchess.com"]
[Source "ChessBase"]
[SourceQuality "1"]
[TimeControl "5400+30"]

1. d4 {[%emt 0:00:23]} Nf6 {[%emt 0:08:43]} 2. c4 {[%emt 0:00:17]} g6 {[%emt 0:00:11]} 3. Nc3 {[%emt 0:00:09]} Bg7 {[%emt 0:00:05]} 4. e4 {[%emt 0:00:05]} d6 {[%emt 0:00:05]} 5. Nf3 {[%emt 0:00:36]} O-O {[%emt 0:00:06]} 6. Be2 {[%emt 0:00:19]} Na6 {[%emt 0:00:04]} 7. O-O {[%emt 0:00:19]} e5 {[%emt 0:00:05]} 8. Bg5 {[%emt 0:00:50]} Qe8 {[%emt 0:00:13]} 9. d5 {[%emt 0:01:32]} Nc5 {[%emt 0:00:47]} 10. Nd2 {[%emt 0:01:43]} a5 {[%emt 0:00:09]} 11. Be3 {[%emt 0:02:07]} b6 {[%emt 0:00:04]} 12. b3 {[%emt 0:01:36]} h6 {[%emt 0:01:31]} 13. a3 {[%emt 0:01:39]} Nh7 {[%emt 0:00:05]} 14. b4 {[%emt 0:00:51]} Nb7 {[%emt 0:02:16]} 15. Nb5 {[%emt 0:02:47]} Qd8 {[%emt 0:00:19]} 16. Qc2 {[%emt 0:00:49]} f5 {[%emt 0:00:10]} 17. f3 {[%emt 0:00:06]} f4 {[%emt 0:00:07]} 18. Bf2 {[%emt 0:00:06]} Rf7 {[%emt 0:09:35]} 19. c5 {[%emt 0:00:38]} bxc5 {[%emt 0:00:04]} 20. bxc5 {[%emt 0:00:32]} Nxc5 {[%emt 0:00:02]} 21. Bxc5 {[%emt 0:00:24]} dxc5 {[%emt 0:00:04]} 22. Nb3 {[%emt 0:02:48]} Bf8 {[%emt 0:02:33]} 23. Nxc5 {[%emt 0:04:26]} c6 {[%emt 0:00:16]} 24. dxc6 {[%emt 0:01:34]} Qb6 {[%emt 0:00:03]} 25. Rfc1 {[%emt 0:00:50]} Rf6 {[%emt 0:01:23]} 26. Kh1 {[%emt 0:01:46]} Rxc6 {[%emt 0:00:32]} 27. Na4 {[%emt 0:00:08]} Rxc2 {[%emt 0:05:26]} 28. Nxb6 {[%emt 0:00:34]} Rxe2 {[%emt 0:01:06]} 29. Nxa8 {[%emt 0:00:11]} Bd7 {[%emt 0:01:17]} 30. Nc3 {[%emt 0:00:37]} Rb2 {[%emt 0:01:46]} 31. Nd5 {[%emt 0:01:11]} Kh8 {[%emt 0:05:01]} 32. h3 {[%emt 0:02:43]} Ng5 33. Nf6 {[%emt 0:01:12]} Bxh3 {[%emt 0:00:12]} 34. gxh3 Nxf3 {[%emt 0:00:03]} 35. Ng4 {[%emt 0:02:09]} h5 {[%emt 0:00:01]} 36. Rab1 {[%emt 0:04:23]} Re2 {[%emt 0:00:11]} 37. Rc3 {[%emt 0:03:18]} hxg4 {[%emt 0:00:17]} 38. Rxf3 {[%emt 0:00:16]} gxf3 {[%emt 0:00:04]} 39. Rb8 {[%emt 0:00:58]} Kg7 {[%emt 0:00:09]} 0-1

[Event "XVIII La Palma-ch 2019"]
[Site "La Palma"]
[Date "2019.03.31"]
[Round "4.2"]
[White "Rodriguez Bittar, Karim Javier"]
[Black "Rodriguez Miranda, Sergio"]
[Result "1/2-1/2"]
[ECO "E62"]
[WhiteElo "1940"]
[BlackElo "1957"]
[Annotator "NA"]
[PlyCount "68"]
[EventDate "2019.03.29"]
[EventType "swiss"]
[EventCountry "ESP"]
[SourceTitle "playchess.com"]
[Source "ChessBase"]
[SourceQuality "1"]
[TimeControl "5400+30"]

1. d4 {[%emt 0:00:00]} Nf6 {[%emt 0:09:41]} 2. c4 {[%emt 0:00:09]} g6 {[%emt 0:00:00]} 3. g3 {[%emt 0:00:47]} Bg7 {[%emt 0:00:30]} 4. Bg2 {[%emt 0:00:29]} O-O {[%emt 0:00:06]} 5. Nf3 {[%emt 0:01:58]} d6 {[%emt 0:00:30]} 6. Nc3 {[%emt 0:00:22]} c6 {[%emt 0:00:03]} 7. O-O {[%emt 0:00:49]} Bf5 {[%emt 0:00:06]} 8. Nh4 {[%emt 0:05:13]} Be6 {[%emt 0:00:07]} 9. Qd3 {[%emt 0:07:32]} d5 {[%emt 0:05:52]} 10. b3 {[%emt 0:04:17]} Na6 {[%emt 0:11:36]} 11. a3 {[%emt 0:06:19]} Ne4 {[%emt 0:14:44]} 12. Bb2 {[%emt 0:07:23]} Nxc3 {[%emt 0:10:17]} 13. Bxc3 {[%emt 0:00:56]} Qd7 {[%emt 0:00:06]} 14. Rfd1 {[%emt 0:08:06]} Nc7 {[%emt 0:01:50]} 15. Nf3 {[%emt 0:03:48]} Bf5 {[%emt 0:01:00]} 16. Qd2 {[%emt 0:00:34]} f6 {[%emt 0:19:05]} 17. Qb2 {[%emt 0:01:41]} Rfe8 {[%emt 0:00:32]} 18. Rac1 {[%emt 0:02:55]} Rad8 {[%emt 0:01:54]} 19. e3 {[%emt 0:03:45]} Qc8 {[%emt 0:06:58]} 20. Re1 {[%emt 0:01:18]} Be4 {[%emt 0:00:05]} 21. Ba5 {[%emt 0:02:37]} b6 {[%emt 0:02:02]} 22. Bc3 {[%emt 0:00:12]} Qe6 {[%emt 0:00:45]} 23. Nd2 {[%emt 0:02:18]} Bxg2 {[%emt 0:00:32]} 24. Kxg2 {[%emt 0:01:12]} Qf5 {[%emt 0:00:10]} 25. e4 {[%emt 0:04:38]} dxe4 {[%emt 0:00:59]} 26. Rxe4 {[%emt 0:09:54]} e5 {[%emt 0:03:21]} 27. Rce1 {[%emt 0:04:54]} exd4 {[%emt 0:00:42]} 28. Rxe8+ {[%emt 0:00:41]} Rxe8 {[%emt 0:00:55]} 29. Rxe8+ {[%emt 0:00:14]} Nxe8 {[%emt 0:00:04]} 30. Bxd4 {[%emt 0:00:16]} c5 {[%emt 0:00:03]} 31. Be3 {[%emt 0:01:22]} Qd3 {[%emt 0:00:15]} 32. Qb1 {[%emt 0:01:48]} Qd7 {[%emt 0:00:20]} 33. Qe4 {[%emt 0:00:03]} Kf7 {[%emt 0:00:05]} 34. b4 {[%emt 0:00:05]} Bf8 {[%emt 0:00:16]} 1/2-1/2

[Event "XVIII La Palma-ch 2019"]
[Site "La Palma"]
[Date "2019.03.31"]
[Round "4.3"]
[White "Rodriguez Martin, Miguel Angel"]
[Black "Alonso Perez, Alfredo"]
[Result "0-1"]
[ECO "A40"]
[WhiteElo "2026"]
[BlackElo "1730"]
[Annotator "NA"]
[PlyCount "126"]
[EventDate "2019.03.29"]
[EventType "swiss"]
[EventCountry "ESP"]
[SourceTitle "playchess.com"]
[Source "ChessBase"]
[SourceQuality "1"]
[TimeControl "5400+30"]

1. d4 {[%emt 0:24:30]} g6 {[%emt 0:00:00]} 2. c4 {[%emt 0:01:31]} Bg7 {[%emt 0:00:40]} 3. Nc3 {[%emt 0:00:53]} c5 {[%emt 0:00:47]} 4. dxc5 {[%emt 0:02:39]} Na6 {[%emt 0:02:45]} 5. e4 {[%emt 0:02:36]} Nxc5 {[%emt 0:02:18]} 6. f4 {[%emt 0:04:36]} Bxc3+ {[%emt 0:02:51]} 7. bxc3 {[%emt 0:00:05]} Nxe4 {[%emt 0:00:44]} 8. Qd4 {[%emt 0:00:23]} Ngf6 {[%emt 0:05:03]} 9. Bd3 {[%emt 0:02:27]} Qb6 {[%emt 0:12:24]} 10. Bxe4 {[%emt 0:01:58]} Qxd4 {[%emt 0:00:13]} 11. cxd4 {[%emt 0:00:06]} Nxe4 {[%emt 0:00:08]} 12. Bb2 {[%emt 0:00:15]} b5 {[%emt 0:20:27]} 13. d5 {[%emt 0:05:20]} O-O {[%emt 0:00:15]} 14. cxb5 {[%emt 0:04:39]} Rb8 {[%emt 0:01:13]} 15. a4 {[%emt 0:01:29]} a6 {[%emt 0:00:09]} 16. Bd4 {[%emt 0:02:47]} axb5 {[%emt 0:00:31]} 17. a5 {[%emt 0:01:57]} Bb7 {[%emt 0:05:04]} 18. h4 {[%emt 0:03:05]} h5 {[%emt 0:01:09]} 19. g4 {[%emt 0:01:16]} Bxd5 {[%emt 0:03:37]} 20. gxh5 {[%emt 0:00:22]} gxh5 {[%emt 0:03:46]} 21. Nf3 {[%emt 0:02:26]} f6 {[%emt 0:00:12]} 22. Rg1+ {[%emt 0:00:49]} Kf7 {[%emt 0:00:14]} 23. Bb6 {[%emt 0:04:56]} Nd6 {[%emt 0:04:01]} 24. Nd4 {[%emt 0:02:27]} Rg8 {[%emt 0:04:21]} 25. Rxg8 {[%emt 0:05:12]} Rxg8 {[%emt 0:02:33]} 26. Nc2 {[%emt 0:01:25]} Nc4 {[%emt 0:02:05]} 27. Bf2 {[%emt 0:02:27]} Nb2 {[%emt 0:02:35]} 28. Ra3 {[%emt 0:02:00]} Nc4 {[%emt 0:06:40]} 29. Ra1 {[%emt 0:01:39]} Rc8 {[%emt 0:01:15]} 30. Nb4 {[%emt 0:00:51]} Be4 {[%emt 0:00:30]} 31. a6 {[%emt 0:00:48]} Nb2 {[%emt 0:00:24]} 32. a7 {[%emt 0:00:34]} Na4 {[%emt 0:00:07]} 33. Rd1 {[%emt 0:02:36]} Bf3 {[%emt 0:05:22]} 34. Rxd7 {[%emt 0:01:10]} Rc1+ {[%emt 0:02:05]} 35. Kd2 {[%emt 0:00:07]} Rd1+ {[%emt 0:00:15]} 36. Ke3 {[%emt 0:00:19]} Rxd7 {[%emt 0:01:25]} 37. Kxf3 {[%emt 0:00:03]} Rd8 {[%emt 0:00:38]} 38. Nc6 {[%emt 0:00:35]} Ra8 {[%emt 0:00:41]} 39. Ke4 {[%emt 0:01:36]} e6 {[%emt 0:02:30]} 40. f5 {[%emt 0:00:42]} Nc3+ {[%emt 0:00:55]} 41. Kd4 {[%emt 0:00:31]} b4 {[%emt 0:01:38]} 42. Kc4 {[%emt 0:01:21]} Ne4 {[%emt 0:01:13]} 43. Bg1 {[%emt 0:02:27]} exf5 {[%emt 0:00:30]} 44. Kxb4 {[%emt 0:00:48]} f4 {[%emt 0:00:51]} 45. Kb5 {[%emt 0:00:35]} f3 {[%emt 0:00:16]} 46. Kb6 {[%emt 0:02:19]} f2 {[%emt 0:00:36]} 47. Bxf2 {[%emt 0:00:30]} Nxf2 {[%emt 0:00:01]} 48. Kb7 {[%emt 0:00:07]} Rxa7+ {[%emt 0:00:08]} 49. Kxa7 {[%emt 0:00:07]} Ke6 {[%emt 0:00:50]} 50. Kb6 {[%emt 0:00:03]} Kf5 {[%emt 0:00:22]} 51. Kc5 {[%emt 0:01:02]} Kg4 {[%emt 0:00:27]} 52. Kd4 {[%emt 0:00:26]} Kxh4 {[%emt 0:00:34]} 53. Ke3 {[%emt 0:00:19]} Kg3 {[%emt 0:01:32]} 54. Nd4 {[%emt 0:00:19]} Ng4+ {[%emt 0:00:33]} 55. Ke4 {[%emt 0:00:49]} Nh6 {[%emt 0:01:44]} 56. Ne2+ {[%emt 0:00:10]} Kf2 {[%emt 0:01:18]} 57. Nf4 {[%emt 0:00:51]} h4 {[%emt 0:00:16]} 58. Nh3+ {[%emt 0:00:40]} Kg3 {[%emt 0:01:04]} 59. Ng1 {[%emt 0:00:42]} h3 {[%emt 0:00:20]} 60. Nf3 {[%emt 0:01:46]} f5+ {[%emt 0:01:02]} 61. Ke3 {[%emt 0:00:16]} Ng4+ {[%emt 0:00:25]} 62. Ke2 {[%emt 0:00:20]} h2 {[%emt 0:00:39]} 63. Nxh2 {[%emt 0:00:03]} Nxh2 {[%emt 0:00:36]} 0-1

[Event "XVIII La Palma-ch 2019"]
[Site "La Palma"]
[Date "2019.03.31"]
[Round "4.4"]
[White "Francisco Concepcion, Francisco"]
[Black "Ros Octavio De Toledo, Eduardo"]
[Result "0-1"]
[ECO "A06"]
[WhiteElo "1494"]
[BlackElo "2061"]
[Annotator "NA"]
[PlyCount "70"]
[EventDate "2019.03.29"]
[EventType "swiss"]
[EventCountry "ESP"]
[SourceTitle "playchess.com"]
[Source "ChessBase"]
[SourceQuality "1"]
[TimeControl "5400+30"]

1. Nf3 {[%emt 0:01:41]} Nf6 {[%emt 0:00:26]} 2. Nc3 {[%emt 0:01:58]} d5 {[%emt 0:03:12]} 3. e3 {[%emt 0:00:22]} Bg4 {[%emt 0:04:12]} 4. h3 {[%emt 0:00:35]} Bh5 {[%emt 0:00:16]} 5. Be2 {[%emt 0:02:14]} c6 {[%emt 0:01:59]} 6. b3 {[%emt 0:10:15]} Nbd7 {[%emt 0:00:58]} 7. g4 {[%emt 0:05:49]} Bg6 {[%emt 0:00:21]} 8. Nh4 {[%emt 0:01:49]} e5 {[%emt 0:01:50]} 9. Ng2 {[%emt 0:12:18]} d4 {[%emt 0:08:52]} 10. exd4 {[%emt 0:00:55]} exd4 {[%emt 0:00:09]} 11. Na4 {[%emt 0:00:33]} Bd6 {[%emt 0:05:56]} 12. O-O {[%emt 0:05:23]} h5 {[%emt 0:03:21]} 13. g5 {[%emt 0:02:48]} Nd5 {[%emt 0:03:16]} 14. f4 {[%emt 0:01:21]} Bf5 {[%emt 0:01:54]} 15. c4 {[%emt 0:16:20]} Ne7 {[%emt 0:06:41]} 16. h4 {[%emt 0:04:14]} g6 {[%emt 0:02:14]} 17. Nb2 {[%emt 0:02:09]} O-O {[%emt 0:01:18]} 18. Nd3 {[%emt 0:03:44]} Qc7 {[%emt 0:01:45]} 19. Nde1 {[%emt 0:03:00]} c5 {[%emt 0:02:49]} 20. d3 {[%emt 0:00:14]} Kg7 {[%emt 0:00:29]} 21. Bb2 {[%emt 0:02:17]} Nb8 {[%emt 0:01:26]} 22. b4 {[%emt 0:01:56]} a5 {[%emt 0:02:42]} 23. b5 {[%emt 0:02:31]} Bh3 {[%emt 0:02:03]} 24. Bc1 {[%emt 0:05:12]} Nf5 {[%emt 0:00:44]} 25. Rf2 {[%emt 0:01:32]} Nd7 {[%emt 0:00:59]} 26. Bd2 {[%emt 0:00:41]} Rfe8 {[%emt 0:00:20]} 27. Bf3 {[%emt 0:03:35]} Rab8 {[%emt 0:01:51]} 28. Kh2 {[%emt 0:00:33]} Ne3 {[%emt 0:02:24]} 29. Qc1 {[%emt 0:00:34]} Bxg2 {[%emt 0:00:43]} 30. Nxg2 {[%emt 0:00:35]} Bxf4+ {[%emt 0:01:00]} 31. Nxf4 {[%emt 0:02:26]} Qxf4+ {[%emt 0:00:04]} 32. Kh3 {[%emt 0:01:08]} Ne5 {[%emt 0:01:56]} 33. Qh1 {[%emt 0:01:02]} Nxd3 {[%emt 0:00:40]} 34. Rh2 {[%emt 0:02:53]} Nf5 {[%emt 0:02:43]} 35. Kg2 {[%emt 0:01:00]} Qxd2+ {[%emt 0:01:06]} 0-1